fUST/lending_fUST_20240824
["ID","MTS","AMOUNT","RATE_DAILY","PERIOD"]
[335813983,1724506238397,-155.06780628,0.00012898,2]
[335813984,1724506238407,-320.90084201,0.00012934,2]
[335813985,1724506238418,-160.52328625,0.00012934,2]
[335813986,1724506238428,-181.28685074,0.00012934,2]
[335813987,1724506238437,-272.45028794,0.00012934,2]
[335813988,1724506238447,-422.52524319,0.00012934,2]
[335813989,1724506238457,-342.6945234,0.00012934,2]
[335813990,1724506238468,-493.36312925,0.00012971,2]
[335813991,1724506238483,-154.72922386,0.00012971,2]
[335813992,1724506238493,-154.72922386,0.00012971,2]
[335813993,1724506238503,-155.00412937,0.00012971,2]
[335813994,1724506238513,-569.6147727,0.00012971,2]
[335813995,1724506238524,-409.2733729,0.00012978,2]
[335813996,1724506238534,-196.83090407,0.00012985,2]
[335813997,1724506238544,-174.85504165,0.00012985,2]
[335813998,1724506238555,-188.65696378,0.00012985,2]
[335813999,1724506238565,-1000.0,0.00013,13]
[335814000,1724506238575,-14402.14626363,0.00013063,2]
[335814001,1724506238586,-409.2733729,0.00013078,2]
[335814002,1724506238596,-153.0,0.00013143,2]
[335814003,1724506238607,-153.0,0.00013143,2]
[335814004,1724506238617,-153.0,0.00013143,2]
[335814005,1724506238632,-153.0,0.00013143,2]
[335814006,1724506238643,-154.4692476,0.00013178,2]
[335814007,1724506238653,-500.0,0.0001318,2]
[335814008,1724506238663,-112933.717982,0.00013231,2]
[335814009,1724506238672,-14402.14626363,0.00013242,2]
[335814010,1724506238682,-3325.54729264,0.00013315,2]
[335814011,1724506238692,-1000.0,0.00013326,2]
[335814012,1724506238702,-1000.0,0.00013346,2]
[335814013,1724506238712,-1000.0,0.00013355,2]
[335814014,1724506238722,-500.0,0.00013396,2]
[335814015,1724506238737,-225867.435963,0.00013405,2]
[335814016,1724506238747,-88888.0,0.00013415,2]
[335814017,1724506238756,-14402.14626363,0.0001342,2]
[335814018,1724506238766,-1000.0,0.00013422,2]
[335814019,1724506238776,-1000.0,0.00013433,2]
[335814020,1724506238786,-478.4065016,0.00013474,2]
[335814021,1724506238796,-1000.0,0.00013484,2]
[335814022,1724506238807,-481.35586808,0.00013489,2]
[335814023,1724506238817,-209.7598205,0.00013496,2]
[335814024,1724506238827,-150.112233,0.000135,2]
[335814025,1724506238838,-150.112233,0.000135,2]
[335814026,1724506238848,-150.112233,0.000135,2]
[335814027,1724506238859,-150.112233,0.000135,2]
[335814028,1724506238869,-150.112233,0.000135,2]
[335814029,1724506238890,-150.112233,0.000135,2]
[335814030,1724506238900,-1000.0,0.00013515,2]
[335814031,1724506238910,-1000.0,0.00013528,2]
[335814032,1724506238920,-1000.0,0.0001353,2]
[335814033,1724506238931,-2022.771765,0.00013534,2]
[335814034,1724506238941,-2022.771765,0.00013534,2]
[335814035,1724506238951,-108331.68244323,0.00013534,2]
[335814036,1724506238962,-1000.0,0.0001356,2]
[335814037,1724506238972,-153.0,0.00013566,2]
[335814038,1724506238984,-153.0,0.00013566,2]
[335814039,1724506238994,-153.0,0.00013566,2]
[335814040,1724506239004,-153.0,0.00013566,2]
[335814041,1724506239015,-153.0,0.00013566,2]
[335814042,1724506239024,-153.0,0.00013566,2]
[335814043,1724506239035,-153.0,0.00013566,2]
[335814044,1724506239045,-153.0,0.00013566,2]
[335814045,1724506239055,-153.0,0.00013566,2]
[335814046,1724506239065,-153.0,0.00013566,2]
[335814047,1724506239075,-153.0,0.00013566,2]
[335814048,1724506239086,-153.0,0.00013566,2]
[335814049,1724506239096,-153.0,0.00013566,2]
[335814050,1724506239106,-153.0,0.00013566,2]
[335814051,1724506239116,-153.0,0.00013566,2]
[335814052,1724506239131,-153.0,0.00013566,2]
[335814053,1724506239140,-153.0,0.00013566,2]
[335814054,1724506239150,-153.0,0.00013566,2]
[335814055,1724506239161,-153.0,0.00013566,2]
[335814056,1724506239171,-153.0,0.00013566,2]
[335814057,1724506239180,-153.0,0.00013566,2]
[335814058,1724506239190,-153.0,0.00013566,2]
[335814059,1724506239200,-153.0,0.00013566,2]
[335814060,1724506239210,-153.0,0.00013566,2]
[335814061,1724506239220,-153.0,0.00013566,2]
[335814062,1724506239230,-153.0,0.00013566,2]
[335814063,1724506239241,-153.0,0.00013566,2]
[335814064,1724506239251,-153.0,0.00013566,2]
[335814065,1724506239261,-153.0,0.00013566,2]
[335814066,1724506239271,-153.0,0.00013566,2]
[335814067,1724506239281,-153.0,0.00013575,2]
[335814068,1724506239291,-153.0,0.00013575,2]
[335814069,1724506239301,-153.0,0.00013575,2]
[335814070,1724506239311,-153.0,0.00013575,2]
[335814071,1724506239320,-153.0,0.00013575,2]
[335814072,1724506239331,-300.0,0.0001358,2]
[335814073,1724506239341,-420.0,0.0001359,2]
[335814074,1724506239351,-14402.14626363,0.00013598,2]
[335814075,1724506239361,-40000.0,0.00013599,2]
[335814076,1724506239372,-150.112233,0.000136,2]
[335814077,1724506239385,-150.112233,0.000136,2]
[335814078,1724506239395,-150.112233,0.000136,2]
[335814079,1724506239405,-150.112233,0.000136,2]
[335814080,1724506239415,-150.112233,0.000136,2]
[335814081,1724506239425,-150.112233,0.000136,2]
[335814083,1724506239436,-150.112233,0.000136,2]
[335814085,1724506239447,-150.112233,0.000136,2]
[335814087,1724506239457,-150.112233,0.000136,2]
[335814088,1724506239468,-150.112233,0.000136,2]
[335814089,1724506239480,-150.112233,0.000136,2]
[335814090,1724506239490,-159.64451,0.000136,2]
[335814091,1724506239501,-6556.81942638,0.000136,2]
[335814092,1724506239512,-150.112236,0.000136,2]
[335814093,1724506239522,-5720.57521366,0.00013621,2]
[335814094,1724506239532,-243.2101,0.0001363,2]
[335814095,1724506239544,-206.7090212,0.00013642,2]
[335814096,1724506239554,-150.0,0.00013672,2]
[335814097,1724506239564,-350.02199508,0.00013673,2]
[335814098,1724506239574,-500.0,0.00013673,2]
[335814099,1724506239584,-500.0,0.00013673,2]
[335814100,1724506239594,-160.0,0.00013673,2]
[335814101,1724506239605,-500.0,0.00013673,2]
[335814102,1724506239616,-170.27890073,0.00013673,2]
[335814103,1724506239631,-500.0,0.00013673,2]
[335814104,1724506239650,-500.0,0.00013673,2]
[335814105,1724506239661,-600.0,0.00013676,2]
[335814106,1724506239671,-68038.20577899,0.00013686,2]
[335814107,1724506239682,-266.61308274,0.00013688,2]
[335814108,1724506239692,-5950.34919207,0.00013697,2]
[335814109,1724506239702,-214.4036946,0.00013697,2]
[335814110,1724506239713,-541.76220107,0.00013698,2]
[335814111,1724506239723,-420.0,0.00013698,2]
[335814112,1724506239733,-615.38101644,0.00013698,2]
[335814113,1724506239743,-500.0,0.00013698,2]
[335814114,1724506239753,-500.0,0.00013698,2]
[335814115,1724506239764,-500.0,0.00013698,2]
[335814116,1724506239775,-500.0,0.00013698,2]
[335814117,1724506239785,-500.0,0.00013698,2]
[335814119,1724506239795,-500.0,0.00013698,2]
[335814121,1724506239805,-478.23733998,0.00013698,2]
[335814123,1724506239817,-500.0,0.00013698,2]
[335814125,1724506239827,-500.0,0.00013698,2]
[335814127,1724506239837,-371.64930465,0.00013698,2]
[335814129,1724506239847,-500.0,0.00013698,2]
[335814131,1724506239856,-500.0,0.00013698,2]
[335814133,1724506239867,-538.57072484,0.00013698,2]
[335814135,1724506239881,-500.0,0.00013698,2]
[335814137,1724506239890,-500.0,0.00013698,2]
[335814139,1724506239900,-616.21891281,0.00013698,2]
[335814141,1724506239911,-500.0,0.00013698,2]
[335814143,1724506239920,-500.0,0.00013698,2]
[335814145,1724506239930,-500.0,0.00013698,2]
[335814147,1724506239940,-188.21815765,0.00013698,2]
[335814149,1724506239950,-1200.0,0.00013698,2]
[335814151,1724506239960,-1200.0,0.00013698,2]
[335814154,1724506239972,-502.96034577,0.00013698,2]
[335814156,1724506239982,-222.23532715,0.00013698,2]
[335814157,1724506239992,-504.91529324,0.00013698,2]
[335814159,1724506240002,-500.0,0.00013698,2]
[335814161,1724506240011,-500.0,0.00013698,2]
[335814163,1724506240022,-500.0,0.00013698,2]
[335814165,1724506240033,-554.37074872,0.00013698,2]
[335814167,1724506240044,-500.0,0.00013698,2]
[335814170,1724506240055,-500.0,0.00013698,2]
[335814172,1724506240066,-500.0,0.00013698,2]
[335814174,1724506240076,-516.55611504,0.00013698,2]
[335814176,1724506240086,-501.1535577,0.00013698,2]
[335814178,1724506240096,-500.0,0.00013698,2]
[335814180,1724506240106,-501.9178926,0.00013698,2]
[335814182,1724506240116,-500.0,0.00013698,2]
[335814184,1724506240128,-509.38034632,0.00013698,2]
[335814186,1724506240138,-500.0,0.00013698,2]
[335814188,1724506240149,-500.0,0.00013698,2]
[335814190,1724506240160,-500.0,0.00013698,2]
[335814192,1724506240170,-500.0,0.00013698,2]
[335814194,1724506240180,-500.0,0.00013698,2]
[335814196,1724506240190,-500.0,0.00013698,2]
[335814197,1724506240200,-500.0,0.00013698,2]
[335814198,1724506240210,-500.0,0.00013698,2]
[335814199,1724506240219,-500.0,0.00013698,2]
[335814200,1724506240230,-511.56,0.00013698,2]
[335814201,1724506240241,-500.0,0.00013698,2]
[335814202,1724506240254,-725.6,0.00013698,2]
[335814203,1724506240264,-500.85815529,0.00013698,2]
[335814204,1724506240530,-500.42181622,0.00013698,2]
[335814205,1724506240541,-500.0,0.00013698,2]
[335814206,1724506240554,-500.0,0.00013698,2]
[335814207,1724506240563,-596.18,0.00013698,2]
[335814208,1724506240573,-500.0,0.00013698,2]
[335814209,1724506240582,-500.0,0.00013698,2]
[335814210,1724506240592,-500.0,0.00013698,2]
[335814211,1724506240602,-948.25,0.00013698,2]
[335814212,1724506240611,-943.47,0.00013698,2]
[335814213,1724506240625,-500.0,0.00013698,2]
[335814214,1724506240635,-500.0,0.00013698,2]
[335814215,1724506240646,-500.0,0.00013698,2]
[335814216,1724506240656,-500.0,0.00013698,2]
[335814217,1724506240665,-500.0,0.00013698,2]
[335814218,1724506240675,-500.0,0.00013698,2]
[335814219,1724506240685,-500.0,0.00013698,2]
[335814220,1724506240694,-500.0,0.00013698,2]
[335814221,1724506240704,-500.0,0.00013698,2]
[335814222,1724506240714,-500.0,0.00013698,2]
[335814223,1724506240724,-500.0,0.00013698,2]
[335814224,1724506240735,-500.0,0.00013698,2]
[335814225,1724506240745,-500.0,0.00013698,2]
[335814226,1724506240755,-500.0,0.00013698,2]
[335814227,1724506240765,-640.71,0.00013698,2]
[335814228,1724506240774,-500.0,0.00013698,2]
[335814229,1724506240784,-556.0,0.00013698,2]
[335814230,1724506240793,-500.0,0.00013698,2]
[335814231,1724506240803,-771.75,0.00013698,2]
[335814232,1724506240812,-500.0,0.00013698,2]
[335814233,1724506240822,-500.0,0.00013698,2]
[335814234,1724506240832,-500.0,0.00013698,2]
[335814235,1724506240842,-500.0,0.00013698,2]
[335814236,1724506240851,-500.0,0.00013698,2]
[335814237,1724506240862,-500.0,0.00013698,2]
[335814238,1724506240872,-857.71,0.00013698,2]
[335814239,1724506240882,-500.0,0.00013698,2]
[335814240,1724506240892,-500.0,0.00013698,2]
[335814241,1724506240901,-500.0,0.00013698,2]
[335814242,1724506240911,-500.0,0.00013698,2]
[335814243,1724506240921,-500.0,0.00013698,2]
[335814244,1724506240930,-500.0,0.00013698,2]
[335814245,1724506240940,-500.0,0.00013698,2]
[335814246,1724506240950,-500.0,0.00013698,2]
[335814247,1724506240959,-150.0,0.00013698,2]
[335814248,1724506240969,-500.0,0.00013698,2]
[335814249,1724506240979,-500.0,0.00013698,2]
[335814250,1724506240989,-500.0,0.00013698,2]
[335814251,1724506240999,-500.18172759,0.00013698,2]
[335814252,1724506241008,-583.62,0.00013698,2]
[335814253,1724506241018,-500.0,0.00013698,2]
[335814254,1724506241027,-500.0,0.00013698,2]
[335814255,1724506241038,-500.0,0.00013698,2]
[335814256,1724506241049,-808.92,0.00013698,2]
[335814257,1724506241060,-500.0,0.00013698,2]
[335814258,1724506241069,-500.0,0.00013698,2]
[335814259,1724506241079,-742.62,0.00013698,2]
[335814260,1724506241088,-500.0,0.00013698,2]
[335814261,1724506241098,-500.0,0.00013698,2]
[335814262,1724506241108,-500.0,0.00013698,2]
[335814263,1724506241119,-500.0,0.00013698,2]
[335814264,1724506241130,-501.46148041,0.00013698,2]
[335814265,1724506241140,-500.0,0.00013698,2]
[335814266,1724506241149,-500.0,0.00013698,2]
[335814267,1724506241160,-500.0,0.00013698,2]
[335814268,1724506241170,-1051.68,0.00013698,2]
[335814269,1724506241180,-500.0,0.00013698,2]
[335814270,1724506241192,-500.0,0.00013698,2]
[335814271,1724506241205,-500.0,0.00013698,2]
[335814272,1724506241215,-500.0,0.00013698,2]
[335814273,1724506241226,-500.0,0.00013698,2]
[335814274,1724506241237,-882.69,0.00013698,2]
[335814275,1724506241248,-625.27,0.00013698,2]
[335814276,1724506241258,-503.11997067,0.00013698,2]
[335814277,1724506241269,-712.08,0.00013698,2]
[335814278,1724506241279,-500.0,0.00013698,2]
[335814279,1724506241289,-500.0,0.00013698,2]
[335814280,1724506241299,-500.0,0.00013698,2]
[335814281,1724506241308,-500.0,0.00013698,2]
[335814282,1724506241318,-500.0,0.00013698,2]
[335814283,1724506241328,-500.0,0.00013698,2]
[335814284,1724506241338,-500.0,0.00013698,2]
[335814285,1724506241347,-500.0,0.00013698,2]
[335814286,1724506241357,-500.0,0.00013698,2]
[335814287,1724506241367,-574.69944032,0.00013698,2]
[335814288,1724506241377,-500.0,0.00013698,2]
[335814289,1724506241387,-500.0,0.00013698,2]
[335814290,1724506241396,-500.0,0.00013698,2]
[335814291,1724506241406,-671.1,0.00013698,2]
[335814292,1724506241416,-500.0,0.00013698,2]
[335814293,1724506241427,-500.0,0.00013698,2]
[335814294,1724506241437,-500.0,0.00013698,2]
[335814295,1724506241449,-500.0,0.00013698,2]
[335814296,1724506241459,-500.0,0.00013698,2]
[335814297,1724506241472,-500.0,0.00013698,2]
[335814298,1724506241485,-746.55,0.00013698,2]
[335814299,1724506241495,-500.0,0.00013698,2]
[335814300,1724506241516,-500.0,0.00013698,2]
[335814301,1724506241529,-500.0,0.00013698,2]
[335814302,1724506241539,-500.0,0.00013698,2]
[335814303,1724506241552,-500.0,0.00013698,2]
[335814304,1724506241564,-500.0,0.00013698,2]
[335814305,1724506241577,-590.07,0.00013698,2]
[335814306,1724506241587,-500.0,0.00013698,2]
[335814307,1724506241597,-500.0,0.00013698,2]
[335814308,1724506241607,-500.0,0.00013698,2]
[335814309,1724506241618,-500.0,0.00013698,2]
[335814310,1724506241629,-500.0,0.00013698,2]
[335814311,1724506241638,-882.98,0.00013698,2]
[335814312,1724506241649,-500.0,0.00013698,2]
[335814313,1724506241660,-500.0,0.00013698,2]
[335814314,1724506241672,-500.0,0.00013698,2]
[335814315,1724506241683,-581.45,0.00013698,2]
[335814316,1724506241694,-500.0,0.00013698,2]
[335814317,1724506241704,-500.0,0.00013698,2]
[335814318,1724506241715,-500.0,0.00013698,2]
[335814319,1724506241726,-500.0,0.00013698,2]
[335814320,1724506241738,-500.0,0.00013698,2]
[335814321,1724506241750,-1546.1,0.00013698,2]
[335814322,1724506241761,-500.0,0.00013698,2]
[335814323,1724506241772,-500.0,0.00013698,2]
[335814324,1724506241783,-500.0,0.00013698,2]
[335814325,1724506241793,-500.0,0.00013698,2]
[335814326,1724506241804,-546.71,0.00013698,2]
[335814327,1724506241813,-500.0,0.00013698,2]
[335814328,1724506241823,-500.0,0.00013698,2]
[335814329,1724506241834,-500.0,0.00013698,2]
[335814330,1724506241845,-500.0,0.00013698,2]
[335814331,1724506241855,-500.0,0.00013698,2]
[335814332,1724506241865,-500.0,0.00013698,2]
[335814333,1724506241876,-500.0,0.00013698,2]
[335814334,1724506241887,-500.0,0.00013698,2]
[335814335,1724506241897,-500.0,0.00013698,2]
[335814336,1724506241908,-193.80537047,0.00013698,2]
[335814337,1724506241918,-500.0,0.00013698,2]
[335814338,1724506241928,-500.0,0.00013698,2]
[335814339,1724506241938,-500.0,0.00013698,2]
[335814340,1724506241949,-500.0,0.00013698,2]
[335814341,1724506241959,-500.0,0.00013698,2]
[335814342,1724506241970,-500.0,0.00013698,2]
[335814343,1724506241981,-500.0,0.00013698,2]
[335814344,1724506241991,-522.96,0.00013698,2]
[335814345,1724506242002,-577.6,0.00013698,2]
[335814346,1724506242014,-774.24,0.00013698,2]
[335814347,1724506242025,-500.0,0.00013698,2]
[335814348,1724506242036,-500.0,0.00013698,2]
[335814349,1724506242047,-500.0,0.00013698,2]
[335814350,1724506242058,-1082.88,0.00013698,2]
[335814351,1724506242068,-1219.03,0.00013698,2]
[335814352,1724506242080,-564.29,0.00013698,2]
[335814353,1724506242092,-500.0,0.00013698,2]
[335814354,1724506242102,-500.0,0.00013698,2]
[335814355,1724506242112,-500.0,0.00013698,2]
[335814356,1724506242124,-500.0,0.00013698,2]
[335814357,1724506242135,-500.0,0.00013698,2]
[335814358,1724506242144,-500.0,0.00013698,2]
[335814359,1724506242154,-500.0,0.00013698,2]
[335814360,1724506242163,-500.0,0.00013698,2]
[335814361,1724506242173,-500.0,0.00013698,2]
[335814362,1724506242183,-500.0,0.00013698,2]
[335814363,1724506242193,-315.43926399,0.00013698,2]
[335814364,1724506242203,-500.0,0.00013698,2]
[335814365,1724506242214,-500.0,0.00013698,2]
[335814366,1724506242224,-500.0,0.00013698,2]
[335814367,1724506242235,-884.32,0.00013698,2]
[335814368,1724506242245,-585.54086166,0.00013698,2]
[335814369,1724506242254,-500.0,0.00013698,2]
[335814370,1724506242264,-500.0,0.00013698,2]
[335814371,1724506242275,-500.0,0.00013698,2]
[335814372,1724506242285,-500.0,0.00013698,2]
[335814373,1724506242295,-500.0,0.00013698,2]
[335814374,1724506242304,-500.0,0.00013698,2]
[335814375,1724506242315,-500.0,0.00013698,2]
[335814376,1724506242326,-500.0,0.00013698,2]
[335814377,1724506242336,-500.25966525,0.00013698,2]
[335814378,1724506242346,-500.0,0.00013698,2]
[335814379,1724506242355,-500.0,0.00013698,2]
[335814380,1724506242365,-500.0,0.00013698,2]
[335814381,1724506242378,-713.39,0.00013698,2]
[335814382,1724506242394,-500.0,0.00013698,2]
[335814383,1724506242403,-500.0,0.00013698,2]
[335814384,1724506242413,-933.8,0.00013698,2]
[335814385,1724506242425,-500.0,0.00013698,2]
[335814386,1724506242435,-734.98,0.00013698,2]
[335814387,1724506242445,-500.0,0.00013698,2]
[335814388,1724506242455,-500.0,0.00013698,2]
[335814389,1724506242465,-500.0,0.00013698,2]
[335814390,1724506242478,-500.0,0.00013698,2]
[335814391,1724506242487,-505.96,0.00013698,2]
[335814392,1724506242497,-500.0,0.00013698,2]
[335814394,1724506242507,-500.0,0.00013698,2]
[335814396,1724506242518,-1755.97,0.00013698,2]
[335814398,1724506242528,-500.0,0.00013698,2]
[335814400,1724506242538,-500.0,0.00013698,2]
[335814402,1724506242550,-500.0,0.00013698,2]
[335814404,1724506242559,-500.0,0.00013698,2]
[335814405,1724506242570,-500.0,0.00013698,2]
[335814406,1724506242580,-500.0,0.00013698,2]
[335814407,1724506242589,-500.0,0.00013698,2]
[335814408,1724506242599,-500.0,0.00013698,2]
[335814409,1724506242609,-501.35155916,0.00013698,2]
[335814411,1724506242619,-1128.54,0.00013698,2]
[335814413,1724506242637,-500.0,0.00013698,2]
[335814415,1724506242647,-500.0,0.00013698,2]
[335814418,1724506242656,-253.09911784,0.00013698,2]
[335814421,1724506242667,-794.42,0.00013698,2]
[335814423,1724506242677,-500.0,0.00013698,2]
[335814426,1724506242686,-626.26,0.00013698,2]
[335814429,1724506242696,-500.0,0.00013698,2]
[335814432,1724506242706,-582.81026484,0.00013698,2]
[335814435,1724506242716,-604.67,0.00013698,2]
[335814437,1724506242727,-500.0,0.00013698,2]
[335814439,1724506242737,-500.0,0.00013698,2]
[335814441,1724506242747,-1232.98,0.00013698,2]
[335814443,1724506242757,-500.0,0.00013698,2]
[335814445,1724506242767,-524.10641745,0.00013698,2]
[335814447,1724506242777,-500.0,0.00013698,2]
[335814449,1724506242787,-783.41,0.00013698,2]
[335814451,1724506242797,-500.0,0.00013698,2]
[335814453,1724506242807,-673.55,0.00013698,2]
[335814455,1724506242818,-673.55,0.00013698,2]
[335814457,1724506242827,-2020.85,0.00013698,2]
[335814459,1724506242837,-673.55,0.00013698,2]
[335814462,1724506242849,-673.55,0.00013698,2]
[335814464,1724506242859,-673.55,0.00013698,2]
[335814466,1724506242869,-579.2,0.00013698,2]
[335814468,1724506242881,-673.55,0.00013698,2]
[335814470,1724506242891,-673.55,0.00013698,2]
[335814472,1724506242900,-673.55,0.00013698,2]
[335814474,1724506242910,-673.55,0.00013698,2]
[335814476,1724506242920,-673.55,0.00013698,2]
[335814478,1724506242930,-673.55,0.00013698,2]
[335814480,1724506242939,-673.55,0.00013698,2]
[335814482,1724506242949,-673.55,0.00013698,2]
[335814484,1724506242959,-673.55,0.00013698,2]
[335814486,1724506242969,-512.48,0.00013698,2]
[335814490,1724506242978,-673.55,0.00013698,2]
[335814494,1724506242988,-673.55,0.00013698,2]
[335814499,1724506242999,-673.55,0.00013698,2]
[335814503,1724506243009,-673.55,0.00013698,2]
[335814506,1724506243018,-816.09,0.00013698,2]
[335814509,1724506243028,-673.55,0.00013698,2]
[335814511,1724506243038,-673.55,0.00013698,2]
[335814514,1724506243048,-673.55,0.00013698,2]
[335814517,1724506243058,-673.55,0.00013698,2]
[335814521,1724506243068,-673.55,0.00013698,2]
[335814525,1724506243078,-673.69454486,0.00013698,2]
[335814529,1724506243088,-500.0,0.00013698,2]
[335814533,1724506243098,-500.0,0.00013698,2]
[335814536,1724506243108,-500.0,0.00013698,2]
[335814539,1724506243118,-500.0,0.00013698,2]
[335814543,1724506243129,-500.0,0.00013698,2]
[335814546,1724506243139,-500.0,0.00013698,2]
[335814548,1724506243149,-500.0,0.00013698,2]
[335814550,1724506243159,-770.59,0.00013698,2]
[335814552,1724506243169,-500.0,0.00013698,2]
[335814554,1724506243179,-560.87,0.00013698,2]
[335814556,1724506243189,-279.85197933,0.00013698,2]
[335814559,1724506243199,-500.0,0.00013698,2]
[335814561,1724506243209,-550.94,0.00013698,2]
[335814563,1724506243218,-388.01515087,0.00013698,2]
[335814565,1724506243228,-711.67,0.00013698,2]
[335814567,1724506243238,-524.03413021,0.00013698,2]
[335814569,1724506243248,-500.97004959,0.00013698,2]
[335814571,1724506243258,-678.02,0.00013698,2]
[335814573,1724506243267,-500.0,0.00013698,2]
[335814575,1724506243277,-1283.0,0.00013698,2]
[335814577,1724506243288,-500.0,0.00013698,2]
[335814579,1724506243298,-443.15499385,0.00013698,2]
[335814581,1724506243308,-500.0,0.00013698,2]
[335814583,1724506243317,-500.0,0.00013698,2]
[335814585,1724506243327,-500.0,0.00013698,2]
[335814587,1724506243337,-1826.15,0.00013698,2]
[335814589,1724506243347,-500.0,0.00013698,2]
[335814591,1724506243357,-500.0,0.00013698,2]
[335814593,1724506243366,-500.0,0.00013698,2]
[335814595,1724506243378,-1179.83,0.00013698,2]
[335814597,1724506243388,-500.0,0.00013698,2]
[335814599,1724506243398,-586.88,0.00013698,2]
[335814601,1724506243408,-500.0,0.00013698,2]
[335814603,1724506243418,-586.88,0.00013698,2]
[335814605,1724506243427,-586.88,0.00013698,2]
[335814607,1724506243437,-586.88,0.00013698,2]
[335814609,1724506243448,-586.88,0.00013698,2]
[335814611,1724506243458,-586.88,0.00013698,2]
[335814613,1724506243469,-586.88,0.00013698,2]
[335814615,1724506243481,-828.0,0.00013698,2]
[335814618,1724506243492,-586.88,0.00013698,2]
[335814620,1724506243501,-586.88,0.00013698,2]
[335814622,1724506243512,-586.88,0.00013698,2]
[335814624,1724506243521,-586.88,0.00013698,2]
[335814626,1724506243531,-586.88,0.00013698,2]
[335814628,1724506243542,-586.88,0.00013698,2]
[335814630,1724506243553,-586.88,0.00013698,2]
[335814632,1724506243563,-586.88,0.00013698,2]
[335814634,1724506243572,-586.88,0.00013698,2]
[335814654,1724506243582,-500.0,0.00013698,2]
[335814657,1724506243774,-586.88,0.00013698,2]
[335814659,1724506243783,-500.0,0.00013698,2]
[335814661,1724506243793,-586.88,0.00013698,2]
[335814663,1724506243802,-586.88,0.00013698,2]
[335814665,1724506243814,-586.88,0.00013698,2]
[335814667,1724506243824,-586.88,0.00013698,2]
[335814669,1724506243834,-586.88,0.00013698,2]
[335814671,1724506243844,-500.0,0.00013698,2]
[335814673,1724506243853,-586.88,0.00013698,2]
[335814675,1724506243864,-586.92833301,0.00013698,2]
[335814677,1724506243875,-500.0,0.00013698,2]
[335814679,1724506243884,-500.0,0.00013698,2]
[335814681,1724506243894,-500.0,0.00013698,2]
[335814683,1724506243903,-500.0,0.00013698,2]
[335814685,1724506243913,-500.0,0.00013698,2]
[335814687,1724506243923,-500.0,0.00013698,2]
[335814689,1724506243933,-500.0,0.00013698,2]
[335814691,1724506243942,-500.0,0.00013698,2]
[335814693,1724506243951,-260.0,0.00013698,2]
[335814695,1724506243960,-500.0,0.00013698,2]
[335814697,1724506243970,-500.0,0.00013698,2]
[335814699,1724506243979,-500.0,0.00013698,2]
[335814701,1724506243989,-500.0,0.00013698,2]
[335814703,1724506243998,-500.0,0.00013698,2]
[335814705,1724506244007,-500.0,0.00013698,2]
[335814707,1724506244017,-500.0,0.00013698,2]